bitfinex/quotes_ETHUSD_20240924
["timestamp","ask_amount","ask_price","bid_price","bid_amount"]
[1727211294041,7.24174296,2657.0,2656.9,0.0032]
[1727211295622,6.45290473,2657.0,2656.9,0.0032]
[1727211295949,7.24202046,2657.0,2656.9,0.0032]
[1727211296521,3.47831046,2657.0,2656.9,0.0032]
[1727211298842,3.47831046,2657.0,2656.9,0.07440128]
[1727211299049,3.47831046,2657.0,2656.9,0.0032]
[1727211299410,3.47831046,2657.0,2656.9,0.07440128]
[1727211299744,3.47831046,2657.0,2656.9,0.0032]
[1727211300340,3.47831046,2657.0,2656.9,3.76698]
[1727211300341,0.78911573,2657.0,2656.9,3.76698]
[1727211300547,0.78911573,2657.0,2656.9,0.0032]
[1727211300709,0.78911573,2657.0,2656.9,0.07442737]
[1727211303441,1.33911573,2657.0,2656.9,0.07442737]
[1727211303767,0.55,2657.0,2656.9,0.07442737]
[1727211303965,1.33962671,2657.0,2656.9,0.07442737]
[1727211304126,0.55,2657.0,2656.9,0.07442737]
[1727211304462,0.78961498,2657.0,2656.9,4.65304737]
[1727211304645,0.78961498,2657.0,2656.9,3.83814737]
[1727211305734,1.18325734,2657.1,2656.9,3.83814737]
[1727211306620,1.18325734,2657.0,2656.9,3.83814737]
[1727211307152,6.54409295,2657.0,2656.9,0.07442737]
[1727211307354,5.36083561,2657.0,2656.9,0.07442737]
[1727211307691,6.94153439,2657.0,2656.9,0.07436216]
[1727211308256,1.59719561,2657.0,2656.9,0.07436216]
[1727211308460,5.36083561,2657.0,2656.9,0.07436216]
[1727211308659,7.33632663,2657.0,2656.9,0.07436216]
[1727211310048,7.33632663,2657.0,2656.9,0.0032]
[1727211310559,7.33632663,2657.0,2656.9,0.07436651]
[1727211313061,8.77142631,2657.0,2656.9,0.07436651]
[1727211313245,8.77359287,2657.0,2656.9,0.07436651]
[1727211313472,6.79593529,2657.0,2656.9,0.07436651]
[1727211314066,6.79593529,2657.0,2656.9,0.07116651]
[1727211314792,3.76392,2656.8,2656.7,0.0032]
[1727211315086,8.38702084,2656.8,2656.7,0.0032]
[1727211315291,6.80501921,2656.8,2656.7,0.07459951]
[1727211315460,6.80501921,2656.8,2656.7,0.0032]
[1727211315660,6.80501921,2656.8,2656.7,0.07459951]
[1727211315884,6.80501921,2656.8,2656.7,0.0032]
[1727211316088,6.80501921,2656.8,2656.7,0.07459951]
[1727211316590,7.57581921,2656.8,2656.7,0.07459951]
[1727211316754,7.57581921,2656.8,2656.7,0.07139951]
[1727211316948,0.55,2656.7,2656.3,0.0032]
[1727211317154,0.55,2656.2,2655.7,4.56089]
[1727211317379,0.79110472,2656.0,2655.9,3.76519]
[1727211317578,0.79110472,2656.2,2656.0,3.76506]
[1727211317857,0.79110472,2656.2,2656.1,0.7987]
[1727211318193,0.79110472,2656.2,2656.1,4.56361]
[1727211318549,0.79110472,2656.3,2656.1,4.56361]
[1727211318794,0.79110472,2656.3,2656.2,3.76797]
[1727211319455,0.79051865,2656.3,2656.2,3.76797]
[1727211322457,0.97718189,2656.5,2656.2,3.76797]
[1727211322767,0.7900105,2656.4,2656.2,3.76797]
[1727211325895,0.7900105,2656.4,2656.2,0.0032]
[1727211326080,1.6100105,2656.4,2656.3,0.07295858]
[1727211326488,1.6100105,2656.4,2656.3,0.0032]
[1727211326697,1.6100105,2656.4,2656.3,0.07291508]
[1727211326873,2.1600105,2656.4,2656.3,0.0032]
[1727211329173,1.3400105,2656.4,2656.3,0.0032]
[1727211329377,1.3400105,2656.4,2656.3,0.07291508]
[1727211338424,0.7900105,2656.4,2656.3,4.64794508]
[1727211338587,0.7900105,2656.4,2656.3,5.48921659]
[1727211338923,0.7900105,2656.4,2656.3,1.72458659]
[1727211339087,1.3400105,2656.4,2656.3,0.07291508]
[1727211339290,5.8894005,2656.4,2656.3,0.0032]
[1727211339485,5.09939,2656.4,2656.3,0.0032]
[1727211339730,2.24428892,2656.4,2656.3,0.0032]
[1727211340024,3.03407948,2656.4,2656.3,0.0032]
[1727211340191,3.03407948,2656.4,2656.3,0.07294988]
[1727211340391,2.24428892,2656.4,2656.3,0.0032]
[1727211340726,3.03408811,2656.4,2656.3,0.07294988]
[1727211341022,3.03408811,2656.4,2656.3,0.0032]
[1727211341233,2.12469919,2656.4,2656.3,0.0032]
[1727211341386,1.3349,2656.4,2656.3,0.0032]
[1727211341591,1.3349,2656.4,2656.3,0.07294988]
[1727211341902,1.3349,2656.4,2656.3,0.0032]
[1727211342105,2.12469733,2656.4,2656.3,0.0032]
[1727211342290,1.33979733,2656.4,2656.3,0.07294988]
[1727211342497,1.33979733,2656.4,2656.3,0.0032]
[1727211342723,1.33979733,2656.4,2656.3,0.07294988]
[1727211345769,0.78979733,2656.4,2656.3,3.83757988]
[1727211346060,0.78979733,2656.4,2656.3,4.67885387]
[1727211349368,0.78979733,2656.4,2656.3,3.83757988]
[1727211349769,0.78979733,2656.5,2656.3,3.83757988]
[1727211350398,0.55,2656.4,2656.3,0.07294988]
[1727211350609,1.52718189,2656.4,2656.3,0.07294988]
[1727211350757,3.41673149,2656.4,2656.3,0.07294988]
[1727211351094,3.41673149,2656.4,2656.3,0.0032]
[1727211351462,1.98163181,2656.4,2656.3,0.0032]
[1727211351663,1.00444992,2656.4,2656.3,0.0032]
[1727211351864,4.76893992,2656.4,2656.3,0.0032]
[1727211352269,6.35115757,2656.4,2656.3,0.0032]
[1727211354304,7.78625725,2656.4,2656.3,0.0032]
[1727211354466,4.41627566,2656.4,2656.1,0.0032]
[1727211354673,8.08712565,2656.2,2656.1,0.0032]
[1727211354894,8.08710974,2656.2,2656.1,0.0032]
[1727211355100,0.55,2656.1,2655.8,0.0032]
[1727211355293,0.55,2655.9,2655.8,0.0032]
[1727211355497,1.73614896,2655.9,2655.8,0.0032]
[1727211355875,1.73614896,2655.9,2655.8,0.07332831]
[1727211356073,1.73614896,2655.9,2655.8,0.0032]
[1727211356403,6.58612305,2655.9,2655.8,0.07332831]
[1727211356692,6.58612305,2655.9,2655.8,0.0032]
[1727211356693,6.15577409,2655.9,2655.8,0.0032]
[1727211356894,7.73730604,2655.9,2655.8,0.07332831]
[1727211357198,8.13265553,2655.9,2655.8,0.0032]
[1727211358192,7.73675768,2655.9,2655.8,0.0032]
[1727211358500,7.73637416,2655.9,2655.8,0.0032]
[1727211358700,8.13265553,2655.9,2655.8,0.0032]
[1727211359227,7.73655913,2655.9,2655.8,0.0032]
[1727211359440,6.15577409,2655.9,2655.8,0.0032]
[1727211359729,4.3152,2655.9,2655.8,0.0032]
[1727211360035,4.3152,2655.9,2655.8,0.07332831]
[1727211360036,5.50056373,2655.9,2655.8,0.07332831]
[1727211360191,5.89599786,2655.9,2655.8,0.0032]
[1727211360393,5.89599786,2655.9,2655.8,0.07332831]
[1727211360841,5.89599786,2655.9,2655.8,0.0032]
[1727211360997,6.37975933,2655.9,2655.8,0.0032]
[1727211361799,7.13555933,2655.9,2655.8,0.0032]
[1727211362136,7.13555933,2655.9,2655.8,0.07368504]
[1727211362546,7.13555933,2655.9,2655.8,0.0032]
[1727211364004,5.55476147,2655.9,2655.8,0.0032]
[1727211364214,7.13555933,2655.9,2655.8,0.0032]
[1727211364607,5.55476147,2655.9,2655.8,0.0032]
[1727211364819,7.13555933,2655.9,2655.8,0.0032]
[1727211365439,5.55476147,2655.9,2655.8,0.0032]
[1727211365615,6.73949375,2655.9,2655.8,0.0032]
[1727211365816,5.55476147,2655.9,2655.8,0.0032]
[1727211366051,7.13555933,2655.9,2655.8,0.0032]
[1727211367155,5.55476147,2655.9,2655.8,0.0032]
[1727211368749,6.73911302,2655.9,2655.8,0.0032]
[1727211368955,6.73908541,2655.9,2655.8,0.0032]
[1727211369164,5.98328541,2655.9,2655.8,0.0032]
[1727211369465,0.55,2655.9,2655.8,0.07368504]
[1727211369671,5.49952394,2655.9,2655.8,0.0032]
[1727211369841,5.49952394,2655.9,2655.8,0.07368504]
[1727211371231,6.80505109,2655.9,2655.8,0.07368504]
[1727211372457,6.80505109,2655.9,2655.8,0.0032]
[1727211373063,6.80505109,2655.9,2655.8,0.07368504]
[1727211373368,6.80505109,2655.9,2655.8,0.0032]
[1727211375569,1.73432394,2655.9,2655.8,0.0032]
[1727211375746,1.33926572,2655.9,2655.8,0.0032]
[1727211376077,1.33926572,2655.9,2655.8,0.07368071]
[1727211376276,1.33926572,2655.9,2655.8,0.0032]
[1727211376785,1.33926572,2655.9,2655.8,0.07368071]
[1727211379493,5.50033875,2655.9,2655.8,0.07368071]
[1727211379783,6.68466269,2655.9,2655.8,0.0032]
[1727211380084,5.50033875,2655.9,2655.8,0.0032]
[1727211380952,6.68431319,2655.9,2655.8,0.0032]
[1727211381495,5.50033875,2655.9,2655.8,0.0032]
[1727211381663,6.68433877,2655.9,2655.8,0.0032]
[1727211385360,1.18400002,2655.9,2655.8,0.0032]
[1727211385569,0.78938984,2655.9,2655.8,0.8086]
[1727211385753,3.7652,2655.9,2655.8,0.0738852]
[1727211385960,4.94920002,2655.9,2655.8,0.0738852]
[1727211386491,5.97871281,2655.9,2655.8,0.0738852]
[1727211386675,6.75341281,2655.9,2655.8,0.0738852]
[1727211386851,7.30341281,2655.9,2655.8,0.0738852]
[1727211389998,6.52871281,2655.9,2655.8,0.0738852]
[1727211390183,6.52871281,2655.9,2655.8,0.0032]
[1727211391586,5.34471279,2655.9,2655.8,0.0032]
[1727211391964,6.92551065,2655.9,2655.8,0.0032]
[1727211393856,6.92551065,2655.9,2655.8,0.5032]
[1727211395464,7.31930218,2655.9,2655.8,0.5032]
[1727211397002,7.321632,2655.9,2655.8,0.5032]
[1727211397602,5.34471279,2655.9,2655.8,0.5032]
[1727211398094,5.34471279,2655.9,2655.8,1.0032]
[1727211399302,5.34471279,2655.9,2655.8,1.07391132]
[1727211403081,5.34471279,2655.9,2655.8,1.57391132]
[1727211403804,5.34471279,2655.9,2655.8,1.5032]
[1727211406803,5.34471279,2655.9,2655.8,1.57389391]
[1727211407013,7.72030767,2655.9,2655.8,2.0032]
[1727211407201,5.34471279,2655.9,2655.8,2.0032]
[1727211407513,7.72055957,2655.9,2655.8,2.0032]
[1727211407718,5.34471279,2655.9,2655.8,2.0032]
[1727211408911,5.34471279,2655.9,2655.8,2.07389391]
[1727211409319,0.55,2655.9,2655.8,2.85209391]
[1727211409618,0.55,2656.0,2655.8,2.85209391]
[1727211409803,1.9796491,2655.9,2655.8,2.85209391]
[1727211410004,1.97967175,2655.9,2655.8,2.85209391]
[1727211410216,0.55,2656.0,2655.8,2.85209391]
[1727211410402,1.97965788,2655.9,2655.8,2.85209391]
[1727211411118,1.97965788,2655.9,2655.8,3.35209391]
[1727211411322,5.74485788,2655.9,2655.8,2.5032]
[1727211411481,5.74479734,2655.9,2655.8,2.57385911]
[1727211411805,5.74479734,2655.9,2655.8,2.5032]
[1727211412004,1.97959734,2655.9,2655.8,2.5032]
[1727211412188,1.97959734,2655.9,2655.8,2.57385911]
[1727211412710,1.97959734,2655.9,2655.8,2.5032]
[1727211413120,1.97959734,2655.9,2655.8,2.57385911]
[1727211414440,5.74479734,2655.9,2655.8,2.57385911]
[1727211415508,1.97944262,2655.9,2655.8,2.57385911]
[1727211416412,1.9793817,2655.9,2655.8,2.57385911]
[1727211418529,1.18732851,2655.9,2655.8,3.39235911]
[1727211418851,1.58322322,2656.0,2655.8,3.39235911]
[1727211419150,1.58322322,2655.9,2655.8,3.39235911]
[1727211420038,1.58322322,2656.0,2655.8,3.39235911]
[1727211420229,1.18724081,2655.9,2655.8,3.39235911]
[1727211421820,1.18724081,2655.9,2655.8,8.25002802]
[1727211422939,0.79125454,2655.9,2655.8,8.25002802]
[1727211423156,1.18724081,2656.0,2655.8,8.25002802]
[1727211423327,1.18724081,2655.9,2655.8,8.25002802]
[1727211423658,1.18724081,2656.0,2655.8,8.25002802]
[1727211425439,1.18724081,2656.0,2655.8,7.15769911]
[1727211426630,0.79097845,2655.9,2655.8,7.15769911]
[1727211429863,0.79097845,2655.9,2655.8,3.39235911]
[1727211430178,5.34828322,2656.0,2655.8,3.39235911]
[1727211430453,1.58322322,2655.9,2655.8,3.39235911]
[1727211430652,1.58322322,2655.9,2655.8,2.57385911]
[1727211430857,6.63097461,2655.9,2655.8,2.57385911]
[1727211431729,5.89842322,2655.9,2655.8,2.57385911]
[1727211431931,1.58322322,2655.9,2655.8,2.57385911]
[1727211432247,1.97723071,2656.0,2655.8,2.57385911]
[1727211432248,1.58322322,2656.0,2655.8,2.57385911]
[1727211432434,1.58322322,2656.0,2655.9,0.7802]
[1727211432630,1.58322322,2656.0,2655.9,0.84828151]
[1727211434158,1.58322322,2656.1,2655.9,0.84828151]
[1727211434392,1.58322322,2656.0,2655.9,0.84828151]
[1727211434526,1.18630557,2656.0,2655.9,0.84828151]
[1727211435525,1.18624933,2656.1,2656.0,4.54526]
[1727211435863,1.18625419,2656.1,2656.0,4.54526]
[1727211436157,1.18625419,2656.1,2656.0,0.84816939]
[1727211439772,1.18625419,2656.1,2656.0,4.61315939]
[1727211440067,1.18625419,2656.2,2656.0,5.70098533]
[1727211440270,1.18625419,2656.2,2656.1,0.0032]
[1727211441555,1.58322322,2656.3,2656.1,3.8359369]
[1727211441946,1.18588908,2656.2,2656.1,3.8359369]
[1727211442260,1.18588908,2656.2,2656.1,4.67406059]
[1727211442870,1.58322322,2656.3,2656.1,4.67406059]
[1727211443161,1.58322322,2656.3,2656.1,3.8359369]
[1727211443767,1.97645829,2656.4,2656.2,0.799]
[1727211443768,1.18578513,2656.4,2656.2,0.799]
[1727211443939,1.1857624,2656.4,2656.3,3.76783]
[1727211444140,1.1857624,2656.4,2656.3,3.83322398]
[1727211444732,1.1857624,2656.4,2656.3,0.06859398]
[1727211451267,1.1857624,2656.4,2656.3,3.83322398]
[1727211451476,1.1857624,2656.5,2656.4,3.76449]
[1727211451797,1.1857624,2656.5,2656.4,3.82976335]
[1727211456454,0.79009916,2656.5,2656.4,5.61193165]
[1727211456674,0.79009916,2656.6,2656.5,3.76435]
[1727211456868,0.79009916,2656.6,2656.5,3.83265941]
[1727211457468,0.79009916,2656.7,2656.5,3.83265941]
[1727211457758,0.79009916,2656.7,2656.5,3.82945941]
[1727211459302,0.79009916,2656.7,2656.5,4.66875435]
[1727211459510,0.79009916,2656.8,2656.7,3.76406]
[1727211459873,0.79009916,2656.8,2656.7,3.82906681]
[1727211460110,0.79009916,2656.8,2656.7,4.59936681]
[1727211460673,0.79009916,2656.8,2656.7,5.51966799]
[1727211460898,0.79009916,2656.9,2656.8,3.76392]
[1727211461077,0.79009916,2657.0,2656.9,3.76378]
[1727211461277,0.79009916,2657.0,2656.9,3.82868422]
[1727211461678,0.79009916,2657.1,2656.9,4.47642857]
[1727211461874,0.79009916,2657.1,2657.0,0.0032]
[1727211462089,1.1857624,2657.2,2657.0,0.06805293]
[1727211462571,1.1857624,2657.1,2657.0,0.06805293]
[1727211462903,1.1857624,2657.2,2657.0,0.06805293]
[1727211463610,0.78908867,2657.1,2657.0,0.06805293]
[1727211465219,0.78908867,2657.2,2657.0,0.06805293]
[1727211465510,0.78908867,2657.4,2657.2,3.76335]
[1727211465706,0.78908867,2657.5,2657.3,3.76321]
[1727211465913,0.78908867,2657.5,2657.3,3.83110909]
[1727211466069,0.78908867,2657.5,2657.3,3.83109909]
[1727211466581,0.78908867,2657.6,2657.3,3.83109909]
[1727211466794,0.78908867,2657.6,2657.3,3.82789909]
[1727211466981,0.78908867,2657.6,2657.3,0.06469909]
[1727211467182,0.78908867,2657.5,2657.3,0.06469909]
[1727211467383,0.78908867,2657.5,2657.4,0.0032]
[1727211467616,1.1857624,2657.7,2657.4,0.0675663]
[1727211467617,0.78908867,2657.6,2657.4,0.0675663]
[1727211467825,0.78908867,2657.6,2657.4,0.0032]
[1727211468046,0.78908867,2657.6,2657.5,0.06431503]
[1727211469682,0.78908867,2657.7,2657.5,0.06431503]
[1727211470396,0.78908867,2657.7,2657.2,3.76327]
[1727211470600,0.78908867,2657.7,2657.6,0.06377877]
[1727211471125,0.78908867,2657.7,2657.2,3.76327]
[1727211471420,0.78908867,2657.7,2657.3,0.06393258]
[1727211471626,4.55173867,2657.7,2657.3,0.06393258]
[1727211471802,4.55173867,2657.7,2657.2,3.76327]
[1727211472007,4.55173867,2657.7,2657.4,0.0638813]
[1727211472184,4.55173867,2657.7,2657.3,0.51728958]
[1727211472385,4.55173867,2657.7,2657.5,0.06383003]
[1727211472709,3.76265,2657.7,2657.6,0.06377877]
[1727211473429,3.76265,2657.7,2657.2,3.76327]
[1727211473590,3.76265,2657.7,2657.6,0.06377877]
[1727211473912,3.76265,2657.7,2657.2,3.76327]
[1727211474288,3.76265,2657.7,2657.3,0.06393258]
[1727211474493,3.76265,2657.7,2657.2,3.76327]
[1727211474927,3.76265,2657.7,2657.3,0.06393258]
[1727211475221,3.76265,2657.7,2657.2,3.76327]
[1727211475424,3.76265,2657.7,2657.4,0.0638813]
[1727211475589,3.76265,2657.7,2657.3,0.06393258]
[1727211475790,3.76265,2657.7,2657.5,0.06383003]
[1727211476023,3.76265,2657.7,2657.2,3.76327]
[1727211476024,3.76265,2657.7,2657.4,0.0638813]
[1727211476227,3.76265,2657.7,2657.2,3.76327]
[1727211476728,3.76265,2657.7,2657.3,0.06393258]
[1727211477021,3.76265,2657.7,2657.2,3.76327]
[1727211477231,3.76265,2657.7,2657.4,0.0638813]
[1727211477433,3.76282,2657.6,2657.3,0.06393258]
[1727211477726,3.76282,2657.6,2657.5,0.06703003]
[1727211477914,4.55502,2657.6,2657.5,0.06703003]
[1727211478100,5.72619394,2657.6,2657.5,0.06703003]
[1727211479696,6.51528261,2657.6,2657.5,0.06703003]
[1727211480940,6.51528261,2657.6,2657.5,0.0032]
[1727211482509,3.76321,2657.3,2657.2,0.0032]
[1727211482748,4.51584,2657.3,2657.2,0.06725312]
[1727211483236,5.30804,2657.3,2657.2,0.06725312]
[1727211484236,4.55541,2657.3,2657.2,0.06725312]
[1727211487411,5.34289105,2657.3,2657.2,0.06725312]
[1727211487801,5.34289105,2657.3,2657.2,0.0032]
[1727211488023,4.55541,2657.3,2657.2,0.0032]
[1727211488225,4.55541,2657.3,2657.2,0.0673527]
[1727211488539,5.60951807,2657.3,2657.2,0.0673527]
[1727211489704,1.84630807,2657.3,2657.2,0.0673527]
[1727211489900,5.60951807,2657.3,2657.2,0.0032]
[1727211490221,5.60479912,2657.3,2657.2,0.0673527]
[1727211490420,5.60479912,2657.3,2657.2,0.0032]
[1727211491193,4.81731807,2657.3,2657.2,0.0032]
[1727211491394,5.60479912,2657.3,2657.2,0.0032]
[1727211492223,4.60479912,2657.3,2657.2,0.0032]
[1727211493773,3.81731807,2657.3,2657.2,0.06739599]
[1727211493981,3.81731807,2657.3,2657.2,0.0032]
[1727211494283,4.36731807,2657.3,2657.2,0.06738733]
[1727211494487,4.36731807,2657.3,2657.2,0.0032]
[1727211494644,5.55308047,2657.3,2657.2,0.06738733]
[1727211494844,5.55308047,2657.3,2657.2,0.0032]
[1727211495285,5.55308047,2657.3,2657.2,0.06738733]
[1727211496689,5.18951807,2657.3,2657.2,0.06738733]
[1727211496897,6.77274129,2657.3,2657.2,0.06418733]
[1727211497099,3.7636,2657.1,2656.8,0.0032]
[1727211497275,0.78914317,2657.0,2656.8,0.0032]
[1727211499982,3.76378,2656.9,2656.8,0.0032]
[1727211500621,4.55292317,2656.9,2656.8,0.0032]
[1727211500788,5.10292317,2656.9,2656.8,0.0032]
[1727211501174,4.31378,2656.9,2656.8,0.0032]
[1727211501504,5.49749476,2656.9,2656.8,0.0032]
[1727211501669,3.76395,2656.8,2656.6,0.8324]
[1727211502007,4.55390598,2656.8,2656.6,0.8324]
[1727211503101,5.10401598,2656.7,2656.6,0.8324]
[1727211503292,3.76422,2656.6,2656.4,2.5]
[1727211503459,4.55435043,2656.6,2656.4,2.5]
[1727211503666,4.55435043,2656.6,2656.5,0.06461568]
[1727211505974,5.10435043,2656.6,2656.5,0.06461568]
[1727211506192,4.31422,2656.6,2656.5,0.06461568]
[1727211507401,6.3296655,2656.6,2656.5,0.06461568]
[1727211507606,7.11962701,2656.6,2656.5,0.06461568]
[1727211508210,9.3479884,2656.6,2656.5,0.06461568]
[1727211508814,7.91288872,2656.6,2656.5,0.06461568]
[1727211509111,7.91288872,2656.6,2656.5,0.06781568]
[1727211509792,7.91288872,2656.6,2656.5,0.06461568]
[1727211510406,6.3296655,2656.6,2656.5,0.06461568]
[1727211510833,7.91288872,2656.6,2656.5,0.06461568]
[1727211511531,6.3296655,2656.6,2656.5,0.06461568]
[1727211511733,7.51357532,2656.6,2656.5,0.06461568]
[1727211512529,6.32032982,2656.6,2656.5,0.06461568]
[1727211512707,5.49812982,2656.6,2656.5,0.06461568]
[1727211512908,5.49812982,2656.6,2656.5,0.06781568]
[1727211513342,5.49812982,2656.6,2656.5,0.06461568]
[1727211514133,5.49812982,2656.6,2656.5,0.06781568]
[1727211517142,4.31422,2656.6,2656.5,0.06781568]
[1727211520612,5.49812982,2656.6,2656.5,0.06781568]
[1727211520812,4.31422,2656.6,2656.5,0.06781568]
[1727211521655,5.49812982,2656.6,2656.5,0.06781568]
[1727211521956,6.9171368,2656.6,2656.5,0.06781568]
[1727211528264,6.9171368,2656.6,2656.5,0.56781568]
[1727211530744,11.1333502,2656.6,2656.5,0.56781568]
[1727211530985,13.35214811,2656.6,2656.5,0.56461568]
[1727211531160,13.35214811,2656.6,2656.5,0.5]
[1727211531332,15.61684322,2656.6,2656.5,0.5]
[1727211531631,13.24922666,2656.6,2656.5,0.5]
[1727211532037,15.61682907,2656.6,2656.5,0.5]
[1727211532442,13.35282907,2656.6,2656.5,1.0]
[1727211532871,10.98522666,2656.6,2656.5,1.0]
[1727211536482,10.98522666,2656.6,2656.5,1.5]
[1727211538165,13.35211215,2656.6,2656.5,1.5]
[1727211538567,15.61611215,2656.6,2656.5,1.5]
[1727211539591,15.61646661,2656.6,2656.5,1.5]
[1727211539984,13.24922666,2656.6,2656.5,1.5]
[1727211540563,13.24922666,2656.6,2656.5,2.0]
[1727211544692,13.24922666,2656.6,2656.5,2.5]
[1727211553279,16.01298997,2656.6,2656.5,2.5]
[1727211553630,13.24922666,2656.6,2656.5,2.5]
[1727211553913,16.01298997,2656.6,2656.5,2.5]
[1727211554416,16.01359339,2656.6,2656.5,2.5]
[1727211554913,13.24922666,2656.6,2656.5,2.5]
[1727211556417,16.01358594,2656.6,2656.5,2.5]
[1727211556778,13.24922666,2656.6,2656.5,2.5]
[1727211557833,16.01344724,2656.6,2656.5,2.5]
[1727211558532,13.24922666,2656.6,2656.5,2.5]
[1727211559637,4.31534,2655.8,2655.7,0.8114]
[1727211559792,7.72498512,2655.8,2655.7,0.8114]
[1727211559987,5.75043968,2655.8,2655.7,0.8114]
[1727211560394,7.72475325,2655.8,2655.7,0.8114]
[1727211562433,4.31564,2655.6,2655.5,0.8114]
[1727211562664,7.32990102,2655.6,2655.5,0.8114]
[1727211565603,5.89480134,2655.6,2655.5,0.8114]
[1727211565841,5.49981161,2655.6,2655.5,0.8114]
[1727211566044,5.49981161,2655.6,2655.5,0.87353831]
[1727211566218,5.49981161,2655.6,2655.5,0.87673831]
[1727211566413,5.1050329,2655.6,2655.5,0.87673831]
[1727211566618,4.31564,2655.6,2655.5,0.87673831]
[1727211567601,5.49981161,2655.6,2655.5,0.87673831]
[1727211568605,4.31564,2655.6,2655.5,0.8146]
[1727211569151,4.31564,2655.6,2655.5,0.87673831]
[1727211569504,5.50000692,2655.6,2655.5,0.87673831]
[1727211570345,5.50010591,2655.6,2655.5,0.87673831]
[1727211573638,4.31564,2655.6,2655.5,0.87673831]
[1727211574154,5.34466134,2655.7,2655.5,0.87673831]
[1727211574155,1.18491503,2655.7,2655.5,0.87673831]
[1727211574308,0.7900316,2655.7,2655.5,1.34481295]
[1727211574509,0.7900316,2655.6,2655.5,1.34161295]
[1727211574741,0.7900316,2655.6,2655.5,0.53021295]
[1727211574948,0.7900316,2655.6,2655.5,1.34161295]
[1727211576113,1.18491503,2655.6,2655.5,1.34161295]
[1727211576314,1.18491503,2655.6,2655.5,0.87353831]
[1727211576538,1.18491503,2655.6,2655.5,0.8114]
[1727211576845,0.79048359,2655.6,2655.5,0.8114]
[1727211577229,0.79048359,2655.6,2655.5,0.87381957]
[1727211578321,1.18491503,2655.6,2655.5,0.87381957]
[1727211580264,1.18491503,2655.6,2655.5,1.34160234]
[1727211580750,1.18491503,2655.6,2655.5,5.10736234]
[1727211580925,0.79060431,2655.6,2655.5,5.10736234]
[1727211581727,1.18491503,2655.7,2655.5,4.29596234]
[1727211581927,1.18491503,2655.7,2655.6,1.63398623]
[1727211582317,1.18491503,2655.7,2655.6,1.69626791]
[1727211582864,1.18491503,2655.7,2655.6,5.46188791]
[1727211583016,0.79063481,2655.7,2655.6,5.46188791]
[1727211583214,1.18491503,2655.7,2655.6,5.46188791]
[1727211584154,1.18491503,2655.8,2655.6,4.63408791]
[1727211584354,1.18491503,2655.8,2655.7,1.71776107]
[1727211584772,1.18491503,2655.8,2655.7,1.7776382]
[1727211590832,0.79066918,2655.8,2655.7,4.7153182]
[1727211590995,1.18491503,2656.0,2655.9,0.8278]
[1727211590996,0.79066918,2656.0,2655.9,0.8278]
[1727211591201,0.79066918,2656.0,2655.9,5.15049782]
[1727211591494,0.79066918,2656.1,2656.0,0.8278]
[1727211591883,0.79066918,2656.1,2656.0,0.88360676]
[1727211592073,1.18491503,2656.1,2656.0,0.88360676]
[1727211595587,1.18491503,2656.2,2656.0,0.88360676]
[1727211597598,0.78998619,2656.1,2656.0,0.88360676]
[1727211599911,4.55489619,2656.1,2656.0,0.88360676]
[1727211600073,6.46805246,2656.1,2656.0,0.88360676]
[1727211600275,4.88889112,2656.1,2656.0,0.88360676]
[1727211600472,4.88889112,2656.1,2656.0,0.05580676]
[1727211600677,5.65209112,2656.1,2656.0,0.05580676]
[1727211601378,5.65209112,2656.1,2656.0,0.05900676]
[1727211601682,5.65209112,2656.1,2656.0,0.05580676]
[1727211602661,5.65209112,2656.1,2656.0,0.05900676]
[1727211602875,5.65209112,2656.1,2656.0,0.05580676]
[1727211603019,5.65209112,2656.1,2656.0,0.05900676]
[1727211606288,4.88889112,2656.1,2656.0,0.05900676]
[1727211606648,6.86393048,2656.1,2656.0,0.05900676]
[1727211606987,4.31491,2656.1,2656.0,0.05900676]
[1727211607191,6.28994936,2656.1,2656.0,0.05900676]
[1727211608697,5.73981936,2656.2,2656.0,0.05900676]
[1727211608995,1.97503936,2656.2,2656.0,0.05900676]
[1727211609158,1.58008075,2656.1,2656.0,0.84080676]
[1727211611490,1.58008075,2656.1,2656.0,1.34080676]
[1727211612258,1.58008075,2656.2,2656.0,1.34080676]
[1727211612454,1.58008075,2656.2,2656.1,0.0032]
[1727211612455,2.13008075,2656.2,2656.1,0.0032]
[1727211612660,1.58008075,2656.2,2656.1,0.0032]
[1727211612899,1.18527895,2656.3,2656.1,1.29557268]
[1727211613060,0.79004451,2656.2,2656.1,1.29237268]
[1727211613259,1.18527895,2656.2,2656.1,0.7818]
[1727211613482,1.18527895,2656.2,2656.1,4.54671]
[1727211614007,1.18527895,2656.3,2656.1,4.54671]
[1727211614208,0.79000648,2656.2,2656.1,5.43345768]
[1727211614405,0.79000648,2656.2,2656.1,5.43665768]
[1727211614690,0.79000648,2656.3,2656.2,3.76477]
[1727211615017,0.79000648,2656.3,2656.2,5.44411344]
[1727211615315,1.18527895,2656.5,2656.3,3.76463]
[1727211615617,1.58008075,2656.6,2656.3,3.76463]
[1727211615618,1.18527895,2656.4,2656.3,3.76463]
[1727211615783,1.18527895,2656.4,2656.3,4.68550434]
[1727211617187,1.18527895,2656.4,2656.3,0.92087434]
[1727211617411,1.18527895,2656.4,2656.3,3.8163123]
[1727211617607,1.58008075,2656.5,2656.3,0.0516823]
[1727211618780,1.58008075,2656.4,2656.3,0.0516823]
[1727211620130,7.05937724,2656.4,2656.3,0.0516823]
[1727211620283,5.08459,2656.4,2656.3,0.0548823]
[1727211620620,6.31048569,2656.4,2656.3,0.0032]
[1727211620828,4.31477,2656.2,2656.1,0.0032]
[1727211621050,7.72508837,2656.2,2656.1,0.0032]
[1727211623956,7.72535685,2656.2,2656.1,0.0032]
[1727211624131,4.31491,2656.1,2656.0,0.5]
[1727211624321,7.5138946,2656.1,2656.0,0.5032]
[1727211624523,7.5138946,2656.1,2656.0,0.5]
[1727211624751,9.29659605,2656.1,2656.0,0.5]
[1727211625354,12.29659605,2656.1,2656.0,0.5]
[1727211625517,9.92601145,2656.1,2656.0,0.5]
[1727211627867,12.69221557,2656.1,2656.0,0.5]
[1727211628503,15.80555679,2656.1,2656.0,0.5]
[1727211630115,13.03935267,2656.1,2656.0,0.5]
[1727211635009,10.91572734,2656.1,2656.0,0.5]
[1727211635955,8.54761145,2656.1,2656.0,0.5]
[1727211636616,9.09761145,2656.1,2656.0,0.5]
[1727211637819,11.46572734,2656.1,2656.0,0.5]
[1727211637989,11.46541999,2656.1,2656.0,0.5]
[1727211638335,9.09761145,2656.1,2656.0,0.5]
[1727211638700,14.57876121,2656.1,2656.0,0.5]